bitfinex/quotes_ETHUSD_20240709
["timestamp","ask_amount","ask_price","bid_price","bid_amount"]
[1720507204158,0.57320836,3090.5,3090.1,3.23613]
[1720507204340,0.03085408,3090.5,3090.2,3.23602]
[1720507204539,2.3587,3090.7,3090.2,3.23602]
[1720507204739,0.03052898,3090.6,3090.4,3.2358]
[1720507204942,7.31,3091.0,3090.4,3.2358]
[1720507205173,0.03052749,3090.9,3090.6,3.23551]
[1720507205558,2.3139,3091.2,3090.8,3.2354]
[1720507205866,1.944,3091.7,3090.8,3.2354]
[1720507205867,0.03056485,3091.1,3090.8,3.2354]
[1720507206303,9.1324,3091.6,3090.8,3.2354]
[1720507206604,1.12087555,3091.5,3090.8,3.2354]
[1720507206915,0.03065944,3091.5,3090.8,3.2354]
[1720507207518,1.12088021,3091.4,3090.8,3.2354]
[1720507207717,0.03064111,3091.3,3090.8,3.2354]
[1720507208013,9.1324,3091.6,3090.8,3.2354]
[1720507208208,0.03061177,3091.2,3090.8,3.2354]
[1720507208423,3.28437,3091.5,3090.1,3.23611]
[1720507208583,3.09554369,3091.1,3090.1,3.23611]
[1720507208783,5.46451566,3091.0,3090.1,3.23611]
[1720507209017,1.944,3090.8,3089.8,3.23645]
[1720507209314,1.15156638,3090.7,3089.7,3.23655]
[1720507209514,1.12101566,3090.6,3089.7,3.23655]
[1720507209702,1.12101566,3090.6,3089.8,6.47283]
[1720507209916,0.44566882,3090.5,3089.9,3.23633]
[1720507210122,1.12101566,3090.4,3089.8,3.23638]
[1720507210317,0.03051828,3090.3,3089.9,3.23633]
[1720507210492,0.03051828,3090.3,3089.4,1.678]
[1720507210493,0.03051828,3090.3,3089.7,3.23649]
[1720507210696,0.41515664,3090.5,3089.4,4.91484]
[1720507210697,2.35915664,3090.5,3089.5,3.23669]
[1720507211048,1.944,3090.3,3089.2,3.23705]
[1720507211209,1.72946071,3090.2,3089.2,3.23705]
[1720507211426,1.12124527,3090.1,3089.2,3.23705]
[1720507211632,1.12124527,3090.1,3089.4,3.23687]
[1720507211836,0.03047343,3090.0,3089.4,3.23687]
[1720507212194,0.60821544,3090.2,3089.4,3.23687]
[1720507212442,0.0304445,3089.9,3089.4,3.23687]
[1720507212734,0.98622154,3090.1,3089.2,3.23705]
[1720507212735,0.03042187,3089.8,3089.5,3.23676]
[1720507212920,0.98622154,3090.1,3089.5,3.23676]
[1720507213119,0.03045366,3090.0,3089.5,3.23676]
[1720507213328,0.19294272,3090.0,3089.5,3.23676]
[1720507214199,0.03045366,3090.0,3089.9,3.23635]
[1720507214396,0.03045366,3090.0,3089.9,6.4727]
[1720507214615,7.31,3090.3,3090.2,6.47206]
[1720507215016,7.31,3090.3,3089.5,2.243]
[1720507215017,7.31,3090.3,3090.1,3.23611]
[1720507215313,8.041,3090.3,3089.8,3.23644]
[1720507215515,0.03012297,3090.2,3089.5,3.23676]
[1720507215824,0.8071123,3090.1,3089.3,3.23695]
[1720507216130,0.03010453,3090.0,3089.3,3.23695]
[1720507219926,0.03010453,3090.0,3088.9,3.23737]
[1720507219927,1.944,3089.8,3088.9,3.23737]
[1720507220236,3.83989066,3089.7,3088.5,3.2378]
[1720507220410,1.944,3089.5,3088.2,3.23809]
[1720507220613,0.3065494,3089.4,3088.5,3.23781]
[1720507220833,1.45802208,3089.4,3088.5,3.23781]
[1720507220998,0.3365281,3089.4,3088.6,3.23771]
[1720507221341,0.22805281,3089.3,3088.6,3.23771]
[1720507221520,0.02987671,3089.2,3088.6,3.23771]
[1720507221731,4.4038,3089.1,3088.2,3.23809]
[1720507221959,0.02985258,3089.0,3088.0,3.23827]
[1720507222097,2.96423258,3089.0,3088.0,3.23832]
[1720507222300,0.47023258,3089.0,3088.5,3.23781]
[1720507222551,0.02985258,3089.0,3088.7,3.23751]
[1720507222838,0.02985258,3089.0,3088.8,3.23743]
[1720507223006,7.31,3089.3,3088.8,3.23743]
[1720507223202,0.02979437,3088.9,3088.8,3.23743]
[1720507223442,7.31,3089.3,3088.8,3.23743]
[1720507223645,0.02977755,3088.9,3088.8,3.23743]
[1720507223801,7.31,3089.3,3088.8,3.23743]
[1720507224003,0.02977755,3088.9,3088.8,3.23743]
[1720507224225,0.731,3089.2,3088.8,3.23743]
[1720507224434,0.029816,3088.9,3088.8,3.23743]
[1720507224641,0.731,3089.2,3088.8,3.23743]
[1720507224851,0.731,3089.2,3088.9,3.23739]
[1720507225159,7.31,3089.6,3089.4,3.23687]
[1720507225769,7.31,3089.6,3089.3,3.23697]
[1720507225912,8.65897585,3089.6,3088.8,3.23746]
[1720507226113,3.42627934,3089.5,3088.7,3.2376]
[1720507226414,1.40292552,3089.4,3088.7,3.2376]
[1720507226614,1.40292552,3089.4,3088.9,3.23739]
[1720507227720,8.65897585,3089.6,3089.1,3.23711]
[1720507227920,7.31,3089.6,3089.3,3.23696]
[1720507228217,7.31,3089.6,3089.4,3.23682]
[1720507228436,8.8,3090.1,3089.7,3.23653]
[1720507228640,1.49,3090.1,3089.7,3.23653]
[1720507229458,1.89849195,3090.1,3089.7,3.23653]
[1720507229777,1.49,3090.1,3089.8,3.23644]
[1720507230527,1.49,3090.1,3089.9,3.23634]
[1720507231135,1.49,3090.1,3090.0,3.23624]
[1720507231315,7.31,3090.4,3090.2,3.23596]
[1720507231520,8.041,3090.4,3090.2,3.23596]
[1720507231736,7.31,3090.4,3090.2,3.23596]
[1720507232123,7.31,3090.4,3090.0,3.23622]
[1720507232124,0.06358157,3090.3,3090.0,3.23622]
[1720507232335,0.06358157,3090.3,3089.9,3.23633]
[1720507232537,0.06358157,3090.3,3089.7,3.23655]
[1720507232749,0.73735816,3090.2,3089.7,3.23655]
[1720507232953,7.31,3090.4,3089.7,3.23655]
[1720507233158,0.06376651,3090.3,3089.7,3.23655]
[1720507233732,0.06376651,3090.3,3089.8,3.23643]
[1720507234329,0.06376651,3090.3,3089.9,3.2363]
[1720507235160,0.80114316,3090.3,3089.7,3.23655]
[1720507235363,0.80114316,3090.3,3089.8,3.23645]
[1720507235549,0.80114316,3090.3,3089.9,3.23633]
[1720507235747,0.06376651,3090.3,3090.1,3.23611]
[1720507236242,0.06376651,3090.3,3090.2,3.23603]
[1720507236440,0.06376651,3090.3,3090.2,6.47206]
[1720507237372,7.31,3090.8,3090.5,3.23566]
[1720507237574,2.4648,3091.1,3090.5,3.23566]
[1720507237575,0.06162881,3090.7,3090.5,3.23566]
[1720507237740,0.24648,3091.0,3090.5,3.23566]
[1720507237942,1.18267593,3090.9,3090.5,3.23566]
[1720507238166,1.12096898,3090.8,3090.5,3.23566]
[1720507238343,0.06168405,3090.7,3090.5,3.23566]
[1720507238646,0.24648,3091.0,3090.4,3.23574]
[1720507238647,0.271128,3090.9,3090.4,3.23574]
[1720507238973,0.271128,3090.9,3089.8,2.242]
[1720507238974,3.06500354,3090.8,3089.8,3.23641]
[1720507239173,2.4425,3090.5,3089.4,3.23684]
[1720507239376,1.18272769,3090.4,3089.4,3.23684]
[1720507239578,1.12100354,3090.3,3089.4,3.23684]
[1720507239884,0.06169644,3090.2,3089.7,3.23655]
[1720507240182,1.12100354,3090.1,3089.7,3.23655]
[1720507240388,0.06167353,3090.0,3089.7,3.23655]
[1720507240703,0.06167353,3090.0,3089.8,3.23644]
[1720507240991,9.7525,3090.5,3089.5,3.23667]
[1720507241186,0.06155362,3090.4,3090.1,3.23605]
[1720507241410,0.06155362,3090.4,3089.5,3.23667]
[1720507241411,1.18274718,3090.4,3090.3,3.23593]
[1720507241697,0.06155362,3090.4,3090.3,6.47186]
[1720507242045,19.77,3090.8,3090.5,3.23571]
[1720507242246,1.47806998,3090.8,3090.5,3.23571]
[1720507242487,2.4425,3091.0,3090.3,3.23586]
[1720507242488,1.12097783,3090.7,3090.3,3.23586]
[1720507242643,2.4425,3091.0,3090.3,3.23586]
[1720507242849,1.12102794,3090.9,3090.4,3.23582]
[1720507243063,1.77738073,3090.8,3090.4,3.23582]
[1720507243264,1.12102794,3090.7,3090.4,3.23582]
[1720507243460,0.65635279,3090.8,3090.4,3.23582]
[1720507243661,2.4425,3091.0,3089.8,5.47839]
[1720507243662,1.12101082,3090.7,3090.0,3.23617]
[1720507243852,1.12101082,3090.6,3090.1,3.23607]
[1720507244161,5.40107012,3091.0,3090.1,3.23607]
[1720507244360,2.53361326,3090.9,3090.3,3.2359]
[1720507244588,1.72013615,3090.8,3090.3,3.2359]
[1720507244753,1.12106781,3090.7,3090.4,3.2358]
[1720507244947,0.59906834,3090.8,3090.4,3.2358]
[1720507245169,1.12099951,3090.7,3090.4,3.2358]
[1720507245373,3.45707012,3091.0,3090.4,3.2358]
[1720507245374,5.4425,3091.0,3090.4,3.2358]
[1720507245651,2.53344269,3090.9,3090.4,3.2358]
[1720507245878,1.12099234,3090.8,3090.4,3.2358]
[1720507246084,0.89905128,3090.9,3090.4,3.2358]
[1720507246278,1.12098852,3090.8,3090.4,3.2358]
[1720507246449,1.12098852,3090.7,3090.2,3.23603]
[1720507246644,0.89905128,3090.9,3090.0,3.2362]
[1720507246645,1.12098852,3090.8,3090.0,3.2362]
[1720507246907,1.12098852,3090.8,3089.4,6.23677]
[1720507246908,1.944,3090.6,3089.6,3.23663]
[1720507247067,1.01457012,3090.4,3089.6,3.23663]
[1720507247258,5.02752475,3090.5,3089.6,3.23663]
[1720507247259,4.15286776,3090.3,3089.6,3.23663]
[1720507247487,2.3456,3090.1,3089.6,3.23663]
[1720507247647,1.12128328,3090.0,3089.4,3.2368]
[1720507247847,0.29621277,3090.0,3089.2,3.23707]
[1720507248091,1.12132187,3089.9,3089.2,3.23707]
[1720507248297,0.29621277,3090.0,3089.2,3.23707]
[1720507248500,1.18288321,3089.8,3089.2,3.23707]
[1720507248698,3.38749178,3089.9,3089.0,3.23725]
[1720507248868,0.06149157,3089.7,3089.0,3.23725]
[1720507249057,3.02184204,3089.8,3089.0,3.23725]
[1720507249258,0.06148011,3089.6,3089.0,3.23725]
[1720507249459,2.53441668,3089.7,3089.0,3.23725]
[1720507249460,1.07772488,3089.7,3089.0,3.23725]
[1720507249650,0.06136295,3089.5,3089.0,3.23725]
[1720507249873,0.06137441,3089.6,3089.0,3.23725]
[1720507250289,1.01633901,3089.7,3089.0,3.23725]
[1720507250622,2.59584885,3089.6,3088.6,3.23768]
[1720507250907,3.55089599,3089.5,3088.6,3.2377]
[1720507251051,3.5159578,3089.5,3088.6,3.2377]
[1720507251257,5.55596669,3089.4,3088.4,3.23789]
[1720507251498,5.55596669,3089.4,3088.3,3.23802]
[1720507251499,7.92528626,3089.3,3088.3,3.23802]
[1720507251662,3.55098626,3089.2,3088.3,3.23802]
[1720507251996,3.55111812,3089.1,3088.3,3.23802]
[1720507252151,1.18266562,3089.0,3088.3,3.23802]
[1720507252357,0.21990046,3088.9,3088.1,3.2382]
[1720507252668,0.0609855,3088.8,3088.2,3.23812]
[1720507253218,1.944,3089.0,3088.2,3.23812]
[1720507253357,0.06097403,3088.7,3088.2,3.23812]
[1720507253699,1.01633901,3089.1,3088.6,3.2377]
[1720507253866,1.01655667,3089.2,3088.6,3.2377]
[1720507254068,2.5348857,3089.1,3088.3,3.23801]
[1720507254395,1.96416558,3089.2,3088.5,3.23773]
[1720507254588,2.53487876,3089.1,3088.6,3.2377]
[1720507254757,1.06938745,3089.1,3088.6,3.2377]
[1720507255306,1.06938745,3089.1,3087.9,3.23837]
[1720507255307,2.08594412,3089.1,3087.9,3.23837]
[1720507255453,2.15259441,3089.0,3087.9,3.23837]
[1720507255655,2.53504523,3088.9,3088.0,3.23834]
[1720507255856,1.01655667,3088.9,3088.0,3.23834]
[1720507256123,0.31691511,3088.8,3088.0,3.23834]
[1720507256298,3.27747178,3088.8,3087.9,3.23842]
[1720507256459,4.08233207,3088.7,3087.9,3.23842]
[1720507256653,2.96055667,3088.7,3087.9,3.23842]
[1720507257275,2.96055667,3088.7,3087.7,3.23864]
[1720507257512,0.29605567,3088.6,3087.7,3.23864]
[1720507257794,2.4729,3088.5,3087.7,3.23864]
[1720507257997,4.4169,3088.5,3087.8,3.23854]
[1720507258157,4.4169,3088.5,3087.5,3.23883]
[1720507258158,2.4729,3088.5,3087.7,3.23864]
[1720507258356,2.4729,3088.5,3088.0,3.23834]
[1720507258608,3.04585123,3088.5,3088.0,3.23834]
[1720507258898,1.5640033,3089.0,3087.8,0.06476788]
[1720507258899,3.33705667,3088.9,3087.8,0.06476788]
[1720507259209,3.0,3088.8,3088.2,3.23806]
[1720507259374,3.790106,3088.8,3087.8,3.23854]
[1720507259568,0.55,3088.7,3087.8,3.23854]
[1720507259781,0.55,3088.7,3087.9,3.23842]
[1720507259992,0.55,3088.7,3087.2,3.23916]
[1720507259993,2.4486,3088.5,3087.2,3.23916]
[1720507260194,1.944,3088.4,3087.2,3.23916]
[1720507260497,1.01581066,3088.4,3087.5,3.23876]
[1720507260698,3.0,3088.4,3087.6,3.23868]
[1720507260998,6.46430897,3088.5,3087.7,3.23865]
[1720507261197,3.28826106,3088.4,3087.3,3.23901]
[1720507261400,2.494,3088.3,3086.8,2.242]
[1720507261572,3.28826106,3088.4,3086.8,2.242]
[1720507261573,3.55145467,3088.2,3086.8,2.242]
[1720507261780,3.55145467,3088.2,3085.7,5.78047974]
[1720507261781,8.32570897,3088.4,3087.3,2.242]
[1720507262093,7.31,3088.4,3088.1,3.23815]
[1720507262443,0.05842963,3088.3,3087.8,3.23854]
[1720507262930,0.05842963,3088.3,3087.6,3.23875]
[1720507263923,2.2529,3088.2,3087.4,3.23893]
[1720507264100,2.98974296,3088.2,3087.5,3.23886]
[1720507264421,3.05842963,3088.3,3087.9,3.23841]
[1720507264422,0.05841354,3088.1,3087.9,3.23841]
[1720507264624,3.0,3088.3,3087.9,3.23841]
[1720507264807,0.05840206,3088.0,3087.9,3.23841]
[1720507265009,3.0,3088.3,3087.7,3.23859]
[1720507265322,0.76241136,3088.2,3087.7,3.23859]
[1720507265827,0.76241136,3088.2,3087.6,3.23875]
[1720507266016,0.76241136,3088.2,3087.4,3.23889]
[1720507266220,2.2765,3088.1,3087.3,3.23905]
[1720507266415,0.0582617,3088.0,3087.3,3.23905]
[1720507267293,0.0582617,3088.0,3087.4,3.23896]
[1720507268918,0.0582617,3088.0,3087.5,3.23884]
[1720507269097,0.0582617,3088.0,3087.7,3.23855]
[1720507269443,9.254,3088.4,3087.3,3.23903]
[1720507269599,3.731,3088.3,3087.3,3.23903]
[1720507269803,0.0581425,3088.2,3087.6,3.23875]
[1720507270108,0.37891425,3088.1,3087.6,3.23875]
[1720507270501,0.05812571,3088.0,3087.1,3.23926]
[1720507270714,0.05812571,3088.0,3087.9,3.23844]
[1720507270892,7.31,3088.4,3088.0,3.23825]
[1720507271332,0.05621392,3088.3,3088.0,3.23825]
[1720507271898,0.05621392,3088.3,3088.1,3.23823]
[1720507272435,2.3116,3088.6,3088.2,3.23813]
[1720507272742,2.20816,3088.6,3088.3,3.23802]
[1720507272907,7.31,3088.7,3088.3,3.23802]
[1720507273836,7.31,3088.7,3088.0,3.2383]
[1720507274139,7.31,3088.7,3087.8,3.23847]
[1720507274294,7.31,3088.7,3087.7,3.23861]
[1720507274495,4.3003,3088.5,3087.3,3.239]
[1720507274733,3.06581455,3088.4,3087.3,3.239]
[1720507275023,4.67181455,3088.3,3087.3,3.239]
[1720507275230,1.944,3088.1,3086.3,2.242]
[1720507275447,1.944,3088.1,3086.8,3.23959]
[1720507275613,0.2634,3087.3,3086.9,3.23949]
[1720507275941,0.2634,3087.3,3087.1,3.23925]
[1720507277334,0.05590755,3087.2,3087.1,3.23925]
[1720507277638,0.2634,3087.3,3087.1,3.23925]
[1720507277801,0.05590755,3087.2,3087.1,3.23925]
[1720507278005,0.2634,3087.3,3087.1,3.23925]
[1720507278199,0.05590755,3087.2,3087.1,3.23925]
[1720507278515,0.2634,3087.3,3087.1,3.23925]
[1720507278718,0.05589066,3087.2,3086.3,3.24009]
[1720507279024,1.944,3087.0,3086.0,3.24042]
[1720507279206,1.17823913,3086.9,3086.1,3.24032]
[1720507279417,1.12234509,3086.8,3085.6,2.242]
[1720507279620,0.05583461,3086.7,3086.5,3.23984]
[1720507279798,7.31,3087.1,3086.5,3.23984]
[1720507280001,3.81459961,3087.0,3086.6,3.23978]
[1720507280411,3.81459961,3087.0,3086.3,2.3849]
[1720507280412,0.0554937,3087.0,3086.3,2.3849]
[1720507280734,0.2634,3087.3,3087.1,3.23927]
[1720507281099,2.4913,3087.5,3085.8,5.242]
[1720507281306,1.12226241,3087.4,3086.6,6.47941]
[1720507281506,1.12225371,3087.3,3086.6,6.47941]
[1720507281740,0.941443,3087.4,3086.7,3.23969]
[1720507282406,2.4913,3087.5,3087.0,3.23938]
[1720507282704,7.31,3087.7,3087.6,3.23876]
[1720507282927,10.06688145,3088.2,3086.8,2.242]
[1720507283137,1.12203256,3088.1,3087.1,3.23926]
[1720507283341,2.2897,3087.9,3086.8,2.242]
[1720507283508,3.06603256,3087.8,3086.6,3.23978]
[1720507283703,1.944,3087.6,3086.5,3.23991]
[1720507284038,1.944,3087.6,3086.2,2.242]
[1720507284039,3.61603256,3087.5,3086.3,3.24009]
[1720507284238,1.944,3087.3,3086.4,3.24001]
[1720507284402,1.12203256,3087.2,3085.8,5.72368]
[1720507284602,6.30900326,3087.4,3085.8,5.72368]
[1720507284603,2.75900326,3087.4,3086.8,3.23955]
[1720507284947,1.12219404,3087.3,3086.8,3.23955]
[1720507285153,2.75900326,3087.4,3086.8,3.23955]
[1720507285328,1.12221021,3087.3,3086.8,3.23955]
[1720507285648,0.38812135,3087.3,3086.8,3.23955]
[1720507286183,0.38812135,3087.3,3086.6,3.2398]
[1720507286361,0.38812135,3087.3,3086.5,3.23988]
[1720507286648,1.12221347,3087.2,3086.5,3.23988]
[1720507286814,0.38812135,3087.3,3086.5,3.23988]
[1720507287010,1.43695907,3087.2,3086.5,3.23988]
[1720507287258,0.31471246,3087.2,3086.5,3.23988]
[1720507287423,1.12227349,3087.1,3086.4,3.24001]
[1720507287612,0.31471246,3087.2,3086.4,3.24001]
[1720507287835,1.46100349,3087.1,3086.4,3.24001]
[1720507288145,0.3386986,3087.1,3086.4,3.24001]
[1720507288561,0.3386986,3087.1,3086.6,3.2398]
[1720507288931,0.31471246,3087.2,3085.8,8.72368]
[1720507288932,0.31471246,3087.2,3086.8,3.23957]
[1720507289260,1.1223267,3087.1,3086.4,3.24001]
[1720507289426,1.1223267,3087.0,3086.4,3.24001]
[1720507289611,3.97074,3087.2,3086.4,3.24001]
[1720507289814,2.30540358,3087.1,3086.4,3.24001]
[1720507290015,1.12230446,3087.0,3086.4,3.24001]
[1720507290312,1.183074,3087.1,3086.2,3.24021]
[1720507290561,1.12229754,3087.0,3086.2,3.24021]
[1720507290857,1.12229754,3087.0,3086.0,3.24044]
[1720507290858,2.378,3086.8,3086.0,3.24044]
[1720507291071,2.378,3086.8,3085.8,3.24064]
[1720507291359,3.62244324,3086.7,3085.4,3.24106]
[1720507291553,1.95,3086.5,3085.4,3.24106]
[1720507291761,1.95,3086.3,3085.4,3.24106]
[1720507291965,2.3903,3086.2,3085.4,3.24106]
[1720507292115,5.98604956,3086.2,3085.2,3.24126]
[1720507292869,5.98604956,3086.2,3084.2,5.56509]
[1720507292870,0.04574956,3086.2,3086.0,3.24041]
[1720507293016,0.04574956,3086.2,3085.8,3.24056]
[1720507293365,3.0,3086.7,3085.5,2.242]
[1720507293572,0.54813,3086.7,3086.0,3.24042]
[1720507293794,3.04575205,3086.6,3086.0,3.24042]
[1720507293916,0.04575205,3086.6,3086.1,3.24025]
[1720507294116,0.04575205,3086.6,3086.2,3.24021]
[1720507295159,0.04575205,3086.6,3086.0,2.242]
[1720507295316,0.04575205,3086.6,3086.5,3.23991]
[1720507295516,2.3097,3087.3,3086.8,3.2395]
[1720507295828,2.54067,3087.3,3086.8,3.2395]
[1720507296251,2.2772,3087.7,3087.1,3.23921]
[1720507296414,2.2772,3087.7,3087.2,3.23917]
[1720507296618,2.65392,3087.7,3087.0,3.23938]
[1720507296940,1.12211953,3087.6,3086.8,3.23959]
[1720507297141,0.57260395,3087.5,3086.8,3.23959]
[1720507297347,0.57260395,3087.5,3086.7,3.23969]
[1720507297547,1.1222043,3087.4,3086.7,3.23969]
[1720507297754,0.57260395,3087.5,3086.8,3.23958]
[1720507297931,1.12220835,3087.4,3086.8,3.23958]
[1720507298133,0.16948123,3087.4,3086.6,3.23978]
[1720507298347,1.12221746,3087.3,3086.4,3.24001]
[1720507298529,0.16948123,3087.4,3086.1,2.242]
[1720507298530,5.8994265,3087.2,3086.1,2.242]
[1720507298734,6.0722265,3087.1,3086.0,3.24043]
[1720507298930,3.62233608,3087.0,3085.9,3.24052]
[1720507299138,6.07233608,3086.9,3085.7,3.24068]
[1720507299419,6.07233608,3086.9,3085.8,3.24062]
[1720507299420,2.2772,3086.7,3085.8,3.24062]
[1720507299760,2.2772,3086.7,3085.7,3.24068]
[1720507299922,4.2272,3086.7,3085.7,3.24068]
[1720507300126,3.55,3086.6,3085.6,2.242]
[1720507300346,1.95,3086.5,3085.5,3.24095]
[1720507300546,1.95,3086.3,3085.3,3.24113]
[1720507300758,1.95,3086.3,3085.1,5.48334]
[1720507300759,0.25,3086.2,3085.4,3.24106]
[1720507301177,0.25,3086.2,3085.6,3.24076]
[1720507301364,3.77772,3086.6,3085.8,3.24062]
[1720507301522,3.77772,3086.6,3085.6,3.24076]
[1720507301523,3.0,3086.6,3085.6,3.24076]
[1720507301720,1.122497,3086.5,3085.6,3.24076]
[1720507301925,3.3241,3086.8,3085.2,3.24125]
[1720507301926,1.95,3086.3,3085.2,3.24125]
[1720507302241,0.3622497,3086.2,3085.1,5.48335]
[1720507302446,3.0,3086.3,3085.6,3.24076]
[1720507302621,3.55,3086.6,3085.7,3.24075]
[1720507302819,1.40531037,3086.5,3085.7,3.24075]
[1720507303023,0.28272,3086.5,3085.7,3.24075]
[1720507303759,1.12251339,3086.4,3085.7,3.24075]
[1720507303966,0.28272,3086.5,3085.7,3.24075]
[1720507304181,2.883272,3086.4,3085.5,3.24087]
[1720507304472,1.95,3086.2,3085.3,3.2411]
[1720507304651,1.66331644,3086.1,3085.3,3.2411]
[1720507304861,1.12254567,3086.0,3085.1,5.48337]
[1720507305025,5.49071059,3086.1,3085.2,3.24127]
[1720507305221,3.54907106,3086.0,3085.2,3.24127]
[1720507305460,0.54907106,3086.0,3085.2,3.24127]
[1720507305653,3.0,3086.0,3085.2,3.24127]
[1720507305849,2.49071059,3086.1,3085.1,2.242]
[1720507305850,1.12269519,3085.9,3085.1,2.242]
[1720507306049,1.95,3086.0,3085.1,5.48337]
[1720507306387,0.55,3085.9,3085.1,5.48337]
[1720507306549,4.348,3085.8,3085.1,2.242]
[1720507306868,0.60207072,3085.7,3084.9,3.24155]
[1720507307081,0.60207072,3085.7,3085.1,3.24134]
[1720507307082,0.64619636,3085.7,3085.1,3.24134]
[1720507307369,0.04412564,3085.7,3085.2,3.24121]
[1720507307579,0.04412564,3085.7,3085.6,3.24086]
[1720507307795,2.781272,3086.4,3085.6,3.24086]
[1720507307796,3.0,3086.3,3085.8,3.24063]
[1720507308084,0.04413478,3086.2,3085.8,3.24063]
[1720507308291,3.5781272,3086.3,3085.7,3.2407]
[1720507308459,0.04412329,3086.1,3085.8,3.24064]
[1720507308670,0.59761272,3086.2,3085.8,3.24064]
[1720507308895,0.04403453,3086.0,3085.8,3.24064]
[1720507309187,0.59761272,3086.2,3085.8,3.24064]
[1720507309386,0.04402305,3085.9,3085.8,3.24064]
[1720507309591,2.398,3086.4,3085.8,3.24064]
[1720507309750,3.86782694,3089.3,3085.8,3.24064]
[1720507309751,0.04406411,3085.9,3085.8,6.4813]
[1720507310095,2.4485,3086.9,3086.4,3.24]
[1720507310587,0.04421556,3086.8,3086.4,3.24]
[1720507311352,0.04421556,3086.8,3086.4,3.20749692]
[1720507311596,1.49,3087.1,3086.4,3.20749692]
[1720507311793,0.04427652,3086.7,3086.4,3.20749692]
[1720507312002,1.49,3087.1,3086.4,3.20749692]
[1720507312151,0.04426504,3086.6,3086.4,3.20749692]
[1720507312501,0.04425356,3086.5,3086.4,3.20749692]
[1720507312851,7.31,3087.0,3086.5,3.23991]
[1720507313052,5.04659137,3086.9,3086.5,3.23991]
[1720507313274,1.12229753,3086.8,3086.5,3.23991]
[1720507313495,3.92432604,3086.9,3086.5,3.23991]
[1720507313665,0.04430507,3086.7,3086.5,3.23991]
[1720507313992,3.88,3086.9,3086.5,3.23991]
[1720507314193,2.24132571,3086.8,3086.5,3.23991]
[1720507314351,1.16331897,3086.8,3086.5,3.23991]
[1720507314550,0.33841692,3086.7,3086.5,3.23991]
[1720507314795,0.38272,3086.7,3086.5,3.23991]
[1720507315083,0.38272,3086.7,3086.6,6.47962]
[1720507315704,0.38272,3086.7,3086.6,11.96143]
[1720507317657,0.38272,3086.7,3086.6,14.25143]
[1720507318093,0.04430308,3086.7,3086.6,17.25143]
[1720507318462,7.31,3087.0,3086.9,6.47898]
[1720507318682,7.34842009,3087.0,3086.9,9.71847]
[1720507318924,7.31,3087.6,3087.5,6.47772]
[1720507319181,12.46,3088.1,3087.5,6.47772]
[1720507319182,19.77,3088.1,3088.0,3.23834]
[1720507321117,7.31,3088.6,3088.0,4.6139]
[1720507321313,19.77,3088.9,3088.8,6.475]
[1720507321602,4.13498732,3089.8,3089.0,3.23719]
[1720507321603,7.31,3089.4,3089.0,3.23719]
[1720507321898,7.31,3089.4,3088.8,3.2375]
[1720507321899,7.31,3089.4,3089.1,3.23718]
[1720507322220,9.26,3089.4,3088.5,3.23773]
[1720507322494,0.731,3089.3,3088.6,3.23771]
[1720507322697,0.9991,3089.2,3088.4,3.23787]
[1720507323009,0.9991,3089.2,3088.5,3.2378]
[1720507323213,0.9991,3089.2,3088.6,3.23768]
[1720507323763,0.39991,3089.1,3088.8,3.23743]
[1720507324190,0.39991,3089.1,3088.7,3.23759]
[1720507324364,0.39991,3089.1,3088.6,2.242]
[1720507324559,0.39991,3089.1,3087.8,3.23851]
[1720507324560,4.4165,3089.0,3088.1,2.242]
[1720507324802,4.4165,3089.0,3087.6,2.242]
[1720507324803,1.95,3088.8,3087.6,2.242]
[1720507324960,0.55,3088.7,3087.7,3.23862]
[1720507325312,2.5,3088.7,3088.0,3.23833]
[1720507325511,0.25,3088.6,3088.0,3.23833]
[1720507325799,3.25,3088.6,3088.0,3.23833]
[1720507325973,3.25,3088.6,3087.7,3.23862]
[1720507326185,2.3864,3088.4,3087.6,5.48074]
[1720507326377,0.575,3088.5,3088.1,3.23823]
[1720507326583,0.0368007,3088.3,3088.1,3.23823]
[1720507326910,0.575,3088.5,3087.6,2.242]
[1720507326911,0.03676578,3088.2,3088.0,3.23832]
[1720507327112,0.25,3088.6,3087.8,3.23848]
[1720507327278,0.03669773,3088.1,3087.8,3.23848]
[1720507327481,0.52,3088.5,3087.8,3.23848]
[1720507327660,0.03668012,3088.0,3087.8,3.23848]
[1720507327862,9.26,3088.4,3087.6,2.242]
[1720507328112,4.3773,3088.2,3086.6,2.242]
[1720507328403,4.3773,3088.2,3086.9,3.23948]
[1720507328566,1.95,3088.0,3087.1,3.23926]
[1720507328968,2.53647536,3087.9,3087.0,3.23938]
[1720507329277,2.53647536,3087.9,3087.1,3.23925]
[1720507329865,3.0,3087.8,3087.2,3.23915]
[1720507330066,0.0364152,3087.7,3087.2,3.23915]
[1720507330266,0.0364152,3087.7,3087.4,3.23889]
[1720507330610,7.31,3088.1,3087.1,2.242]
[1720507330775,7.31,3088.1,3087.5,3.23886]
[1720507330776,0.03504425,3087.6,3087.5,3.23886]
[1720507331122,7.31,3088.1,3087.6,3.2387]
[1720507331494,0.03516017,3088.0,3087.8,3.23846]
[1720507331693,0.03516017,3088.0,3087.9,3.23844]
[1720507331895,0.76967619,3088.0,3087.4,3.23896]
[1720507332610,0.76967619,3088.0,3087.3,3.23906]
[1720507333028,0.76967619,3088.0,3087.4,3.23895]
[1720507333215,0.80796762,3087.9,3087.5,3.23886]
[1720507333536,0.03527362,3087.8,3087.1,3.23928]
[1720507333751,0.03527362,3087.8,3087.4,3.23889]
[1720507334243,0.03527362,3087.8,3087.5,3.23885]